Cogmind - Beta 12 @@@ ROGUE MODE // 2023.12.07 @ 13:54:27 Player: Dytttto Result: Destroyed by D-53 Grenadier with Mini Grenade Launcher Performance ------------- Evolutions (0) 0 Regions Visited (2) 400 Robots Destroyed (8) 40 Value Destroyed (232) 232 Prototype IDs (0) 0 Alien Tech Used (0) 0 Bonus (0) 0 TOTAL SCORE: 672 Bonus ------- None Cogmind --------- Core Integrity 0/250 Matter 290/300 Energy 99/125 System Corruption 1% Temperature Cool (0) Movement Core (150) Ox2 Location -10/Mines Parts ------- > --- POWER (1) -------- Light Ion Engine > --- PROPULSION (2) --- (None) > --- UTILITY (2) ------ Small Storage Unit > --- WEAPON (2) ------- (None) > --- INVENTORY (8) ---- Improved Aluminum Leg Improved Aluminum Leg Compact Wheel Large Battery (200) High-capacity Matter Pod (24) ECM Suite Peak State ------------ > --- POWER ------------ Ion Engine > --- PROPULSION ------- Improved Aluminum Leg Improved Aluminum Leg > --- UTILITY ---------- Small Storage Unit Hardened Light Armor Plating > --- WEAPON ----------- Medium Laser EMP Blaster > --- INVENTORY -------- Ion Engine Light Ion Engine Improved Aluminum Leg Improved Aluminum Leg Compact Wheel Large Battery High-capacity Matter Pod ECM Suite [Rating: 12] Favorites ----------- Power Ion Engine Engine Ion Engine Propulsion Improved Aluminum Leg Leg Improved Aluminum Leg Utility Small Storage Unit Device ECM Suite Storage Small Storage Unit Protection Hardened Light Armor Plating Weapon Medium Laser Energy Gun Medium Laser Launcher EMP Blaster Build | -11 -10 -10 ------- Run | Jun Mat Min Slots Evolved . | . . . Power . | . . . Propulsion . | . . . Utility . | . . . Weapon . | . . . Parts Attached 17 | 5 10 2 Power 4 | 1 1 2 Engine 4 | 1 1 2 Core . | . . . Reactor . | . . . Propulsion 5 | 2 3 . Treads . | . . . Leg 5 | 2 3 . Wheel . | . . . Hover . | . . . Flight . | . . . Utility 3 | . 3 . Device 1 | . 1 . Storage 1 | . 1 . Processor . | . . . Hackware . | . . . Protection 1 | . 1 . Artifact . | . . . Weapon 5 | 2 3 . Energy Gun 3 | 2 1 . Energy Cannon . | . . . Ballistic Gun . | . . . Ballistic Cannon . | . . . Launcher 2 | . 2 . Special Weapon . | . . . Impact Weapon . | . . . Slashing Weapon . | . . . Piercing Weapon . | . . . Special Melee Weapon . | . . . Unidentified Prototypes . | . . . Parts Lost 8 | . 1 7 Power 2 | . . 2 Propulsion 2 | . . 2 Utility 1 | . . 1 Weapon 3 | . 1 2 Highest Loss Streak 7 | . 1 7 To Critical Strikes . | . . . Average Slot Usage (%) 92 | . 91 97 Engine 14 | . 14 14 Leg 28 | . 28 28 Storage 11 | . 10 14 Protection 9 | . 8 13 Energy Gun 19 | . 20 14 Launcher 8 | . 7 12 Naked Turns . | . . . Heaviest Build 21 | 9 21 21 Greatest Support 26 | 20 26 26 Greatest Overweight (x) 2 | . . 2 Average Overweight (x) . | . . . Largest Inventory Capacity 8 | 5 8 8 Average Capacity 7 | 5 7 8 Most Carried 8 | 3 8 8 Average Carried 6 | 1 6 7 Final Capacity 8 | 5 8 8 Final Carried 8 | 3 8 6 Class Distribution -------------------- 100% | Mutant Dominant Class ---------------- Mutant | -10/Materials Mutant | -10/Mines Resources | -11 -10 -10 ----------- Run | Jun Mat Min Matter Collected 364 | 177 165 22 Remotely . | . . . Salvage Created 249 | . 233 16 Parts 16 | . 16 . Haulers Intercepted . | . . . Recyclers Shooed . | . . . Parts Field Recycled . | . . . Retrieved Matter . | . . . Parts Self-Destructed . | . . . Prevented . | . . . Kills | -11 -10 -10 ------- Run | Jun Mat Min Combat Hostiles Destroyed 8 | . 7 1 Guns 3 | . 2 1 AOE 5 | . 5 . Classes Destroyed 3 | . 2 1 Swarmer 3 | . 3 . Grunt 4 | . 4 . Demolisher 1 | . . 1 Best Kill Streak 3 | . 3 1 Combat Bots Only 3 | . 3 1 Max Kills in Single Turn 3 | . 3 1 Gunslinging . | . . . Exploded 3 | . 3 . Melee . | . . . Uniques/NPCs Destroyed . | . . . Combat | -11 -10 -10 -------- Run | Jun Mat Min Damage Taken 1130 | . 237 893 Core 259 | . 58 201 Absorbed by Shields . | . . . Core Remaining (%) 100 | 100 . . Volleys Fired 21 | . 12 9 Largest 2 | . 2 2 Hottest 90 | . 90 83 Shots Fired 36 | . 24 12 Gun 31 | . 21 10 Cannon . | . . . Launcher 5 | . 3 2 Special . | . . . Kinetic . | . . . Thermal 21 | . 11 10 Explosive . | . . . Electromagnetic 15 | . 13 2 Robot Hit Streak 4 | . 4 4 Robot Miss Streak 2 | . 2 2 Penetration Max . | . . . Secondary Targets . | . . . Shots Hit Robots 17 | . 11 6 Core Hits 14 | . 11 3 Critical Kills . | . . . Critical Parts Destroyed . | . . . Critical Strikes 2 | . 2 . Burn 2 | . 2 . Melee Attacks . | . . . Impact . | . . . Slashing . | . . . Piercing . | . . . Sneak Attacks . | . . . Combat Hostiles . | . . . Follow-up Attacks . | . . . Damage Inflicted 380 | . 244 136 Guns 169 | . 105 64 Cannons . | . . . Explosions 211 | . 139 72 Melee . | . . . Ramming . | . . . Kinetic . | . . . Thermal 127 | . 63 64 Explosive . | . . . Electromagnetic 253 | . 181 72 Impact . | . . . Slashing . | . . . Piercing . | . . . Highest Corruption 1 | . 1 1 Average Corruption 1 | . 1 1 Corruption Purged . | . . . Corruption Blocked . | . . . Effects 2 | . 1 1 Data Loss (minor) 1 | . 1 . Misfires 1 | . . 1 Overload Shots . | . . . Overflow Damage . | . . . Projectiles . | . . . Explosions . | . . . Melee . | . . . Knockbacks . | . . . Impact . | . . . Kinetic . | . . . Secondary . | . . . Self-Inflicted Damage . | . . . Shots . | . . . Rammed . | . . . Targets Rammed . | . . . Kicked . | . . . Crushed . | . . . Highest Temperature 276 | . 276 79 Average Temperature 84 | . 102 41 Received Heat Transfer 120 | . 120 . Siege Activations . | . . . Robots Corrupted . | . . . Combat Hostiles . | . . . Parts Fried . | . . . Impact Corruptions . | . . . Robots Melted . | . . . Combat Hostiles . | . . . Parts Melted 1 | . 1 . Heat Transferred 507 | . 322 185 Parts Sabotaged . | . . . Parts Stolen . | . . . Parts Stripped . | . . . Power Chain Reactions 3 | . 3 . Missiles Intercepted . | . . . Alert | -11 -10 -10 ------- Run | Jun Mat Min Peak Influence 143 | . 143 30 Initial 5 | . . 5 Average 55 | . 69 5 Maximum Alert Level . | . . . Low Security (%) 100 | 100 100 100 Level 1 . | . . . Level 2 . | . . . Level 3 . | . . . Level 4 . | . . . Level 5 . | . . . High Security . | . . . Max Security . | . . . Squads Dispatched . | . . . Investigation . | . . . Extermination . | . . . Reinforcement . | . . . Assault . | . . . Garrison . | . . . Intercept . | . . . Searches Triggered . | . . . Construction Impeded . | . . . Haulers Reinforced . | . . . Active Scanning Responses . | . . . Cargo Convoy Interrupts . | . . . Stealth | -11 -10 -10 --------- Run | Jun Mat Min Distress Signals 2 | . 2 . Communications Jammed . | . . . Distress Signals . | . . . Times Spotted 16 | . 14 2 Peak Tracking Total 4 | . 4 2 Tactical Retreats 1 | . 1 . Traps | -11 -10 -10 ------- Run | Jun Mat Min Traps Triggered 1 | . 1 . Indirectly . | . . . Trap Hack Attempts . | . . . Triggered . | . . . Disarmed . | . . . Reprogrammed . | . . . Reused . | . . . Traps Extracted . | . . . Installed . | . . . Triggered . | . . . Machines | -11 -10 -10 ---------- Run | Jun Mat Min Machines Disabled . | . . . Max in Single Turn . | . . . Machines Repaired . | . . . Machines Sabotaged . | . . . Overloaded Fab Kills . | . . . Hacking | -11 -10 -10 --------- Run | Jun Mat Min Machines Accessed 6 | . 6 . Terminals 5 | . 5 . Fabricators . | . . . Repair Stations . | . . . Recycling Units 1 | . 1 . Scanalyzers . | . . . Garrison Access . | . . . Total Hacks 17 | . 17 . Successful 4 | . 4 . Failed 13 | . 13 . Catastrophic 1 | . 1 . Database Lockouts . | . . . Manual 1 | . 1 . Terminals 12 | . 12 . Fabricators . | . . . Repair Stations . | . . . Recycling Units 5 | . 5 . Scanalyzers . | . . . Garrison Access . | . . . Terminal Hacks 2 | . 2 . Alert Level 1 | . 1 . Zone Layout 1 | . 1 . Fabricator Hacks . | . . . Repair Station Hacks . | . . . Recycling Unit Hacks 2 | . 2 . Report Inventory 1 | . 1 . Retrieve Matter 1 | . 1 . Scanalyzer . | . . . Garrison Access Hacks . | . . . Unauthorized Hacks . | . . . Terminals . | . . . Fabricators . | . . . Repair Stations . | . . . Recycling Units . | . . . Scanalyzers . | . . . Garrison Access . | . . . Data Cores Recovered . | . . . Used . | . . . Hacking Detections 6 | . 6 . Full Trace Events . | . . . Feedback Events . | . . . Feedback Blocked . | . . . Robot Schematics Acquired . | . . . Robots Built . | . . . Authchips . | . . . Time . | . . . Total Robot Build Rating . | . . . Part Schematics Acquired . | . . . Parts Built . | . . . Authchips . | . . . Time . | . . . Total Part Build Rating . | . . . Parts Repaired . | . . . Time . | . . . Parts Recycled . | . . . Recycled Matter . | . . . Retrieved Matter . | . . . Retrieved Components . | . . . Parts Scanalyzed . | . . . Part Schematics Acquired . | . . . Parts Damaged . | . . . Bothacking | -11 -10 -10 ------------ Run | Jun Mat Min Used RIF Installer . | . . . Robots Hacked . | . . . Non-combat . | . . . Combat . | . . . Robot Hacks Applied . | . . . Relay Couplers Released . | . . . Fabnet Peak Effective % . | . . . Robots Rewired . | . . . Allies Hacked . | . . . Hacks Repelled . | . . . Allies | -11 -10 -10 -------- Run | Jun Mat Min Total Allies . | . . . Largest Group . | . . . Highest-Rated Group . | . . . Highest-Rated Ally . | . . . Total Orders . | . . . Ally Attacks . | . . . Total Damage . | . . . Kills . | . . . Allies Corrupted . | . . . Allies Melted . | . . . Intel | -11 -10 -10 ------- Run | Jun Mat Min Robot Analysis Total . | . . . Derelict Logs Recovered . | . . . Drone Launches . | . . . Drone Recoveries . | . . . Exploration | -11 -10 -10 ------------- Run | Jun Mat Min Turns Passed 1206 | 75 942 189 Spaces Moved 871 | 58 684 129 Core 7 | 6 . 1 Treads . | . . . Legs 864 | 52 684 128 Wheels . | . . . Hover . | . . . Flight . | . . . Fastest Speed 50 | 50 120 120 Average Speed 119 | 112 120 120 Slowest Speed 150 | 120 120 150 Overloaded Moves . | . . . Propulsion Burnouts . | . . . Robots Hopped . | . . . Cave-ins Triggered . | . . . Exploration Rate (%) 39 | 5 77 36 Regions Visited 2 Branch Regions 1 Pre-discovered Areas . | . . . Known Exits Taken . | . . . Unknown Exits Taken 2 | 1 1 . Scrap Searched 2 | . . 2 Spaces Dug . | . . . Terrain Destroyed 14 | . 14 . Melee . | . . . Projectile . | . . . AOE 14 | . 14 . Terrain Rammed . | . . . Walls Destroyed . | . . . Machines Disabled . | . . . Actions | -11 -10 -10 --------- Run | Jun Mat Min Total 996 | 65 779 152 Wait 70 | . 58 12 Move 869 | 57 683 129 Hop . | . . . Pick Up 13 | 3 10 . Fast Attach 8 | 5 3 . Attach 3 | . 1 2 Detach 1 | . 1 . Swap 6 | . 6 . Drop 5 | . 5 . Fire 21 | . 12 9 Melee . | . . . Ram . | . . . Kick . | . . . Crush . | . . . Escape Stasis . | . . . Rewire . | . . . Trap . | . . . Miscellaneous . | . . . Route ------- -11/Junkyard -10/Materials (discovered 3 exits: [*Mat x2] / [*Min]) -10/Mines (discovered 1 exit: [*Mat]) History --------- Turn | Location | Event 6 | -11/Junkyard | Discovered new exit (range 15) 76 | -11/Junkyard | Entered Materials 310 | -10/Materials | Build established: Mutant 451 | -10/Materials | Discovered new exit (range 15) 729 | -10/Materials | Discovered new exit (range 8) 797 | -10/Materials | Discovered new exit (range 16) 1018 | -10/Materials | Entered Mines 1087 | -10/Mines | Discovered new exit (range 7) 1109 | -10/Mines | Found a hidden stash of uninstalled traps 1172 | -10/Mines | Assembled infested the area 1196 | -10/Mines | Core integrity fell below 50% 1206 | -10/Mines | Core integrity fell below 20% 1207 | -10/Mines | Destroyed by D-53 Grenadier with Mini Grenade Launcher Last Messages --------------- 01159_ K-01 Serf collects debris. 01172_ ALERT: Infestation in the mines, dispatching Demolisher response squad. 01177_ C-30 ARC bursts open, deploying its payload. 01177_ D-53 Grenadier unfolds itself. 01181_ K-01 Serf collects debris. 01184_ EMP Blaster destroyed. 01189_ The unstable cave ceiling collapses. 01190_ D-53 Grenadier IFF system glitched. 01190_ Ion Engine destroyed. 01192_ Hrd. Light Armor Plating destroyed. 01193_ D-53 Grenadier destroyed. 01194_ The unstable cave ceiling collapses. 01201_ Ion Engine destroyed. 01203_ The unstable cave ceiling collapses. 01203_ Imp. Aluminum Leg destroyed. 01205_ Med. Laser destroyed. 01205_ Imp. Aluminum Leg destroyed. 01205_ T-07 Excavator destroyed. 01207_ The unstable cave ceiling collapses. Map ----- +----------------------------------------------------+ | ?????????????????????????????????????????????????? | | ?????????????????????????????????????????????????? | | ?????????????????????????????????????????????????? | | ?????????????????????????????????????????????????? | | ?????????????????????????????????????????????????? | | ?????????????????????????????????????????????????? | | ?????????????????????????????????????????????????? | | ?????????????????????????????????????????????????? | | ?????????????????????????????????????????????????? | | ?????????????????????????????????????????????????? | | ?????????????????????????????????????????????????? | | ?????????????????????????????????????????????????? | | ???????????#?????????????????????????????????????? | | ??????????## ????????????????????????????????????? | | ??????????? ????????????????????????????????????? | | ???????????? ???????????????????????????????????? | | ????????????? ??????????????????????????????????? | | ????????????## ?????????????????????????????????? | | ????????????# ####?????????????????? ??????????? | | ????????????# ####?????????### ??????????? | | ????????????# % ##??????? ??????????? | | ????????????## ####??? ?????????? | | ????????????# %r # ### #??????????? | | ????????????## = #???????##### | | ????????????# d% #???????# | | ??????????????## | @ ##??????????????# | | ???????????????# ##???????????????# #? | | ???????????????## # #??????# ####### #? | | ????????????????## #??????# #? | | ?????????????????## ##??????###### ### #? | | ??????????????????## ############## #?# #? | | ???????????????????## ### ## | | ????????????????????#### ## ############## # | | ???????????????????????### ### #??????????## # | | ?????????????????????????###?# #?????????## # | | ?????????????????????????????# #??????#### ## | | ?????????????????????????????# #?????## ####? | | ????????????????????? ???????# #?????# ##???? | | ???????????????????## ??????# #?????# & &##????? | | ????????????????? #???### #?????## &##?????? | | ???????????????? #?## ##?????## #??????? | | ????????????????? #?# ##?????# #??????? | | ?????????????????? ### ####??# #??????? | | ?????????????????? $ ##?# #??????? | | ??????????????????? ###] #??????? | | ???????????????????? #?????# #??????? | | ????????????????????# #?????# < ##] #??????? | | ????????????????????# #?????# ## #??????? | | ???????????????????## ##????# ## #??????? | | ??????????????????## ##???# # ### #??????? | +----------------------------------------------------+ Best States ------------- Heat Dissipation 25 Energy Generation 10 Energy Capacity 250 Matter Stores 300 Matter Capacity 300 Sight Range 16 Terrain Scan Density 10 ECM Strength 1 Armor Coverage 150 Evasion (%) 55 Item Schematics ----------------- None Robot Schematics ------------------ None Fabricated ------------ Nothing Alien Tech Used ----------------- None Achievements -------------- None Challenges ------------ None Game ------ Seed SmallArmoredTreads Manual? 0 Play Time 00:10:57 Cumulative 27.2 hours Start 2023.12.07 @ 13:44:50 End 2023.12.07 @ 13:54:27 Sessions 1 Manual Loads 0 Difficulty Rogue Special Mode None Game No. 97 Rogue 61 Adventurer 36 Explorer 0 Win Type - Total 0 Types 0/0/0/0/0/0/0/0/0 Lore% 20 Gallery% 26 Achievement% 18 Wizard Run 0 Options --------- ASCII 0 Keyboard 1 Movement Numpad Keybinds 0 Fullscreen 1 Font 18/SmallcapsGlow Map View 76x50 Tactical HUD 1 Map Filters NONE Filters NONE Steam 1 RUN: 1a4919c8-d18b-433a-8af3-408be0c94dd4